[Event "Titled Tuesday Blitz May 4 2021"]
[White "Callejas Rojas, Francisco Miguel"]
[Black "Nastore, Pavel-Alexandru"]
[WhiteFideId "32072503"]
[BlackFideId "1255002"]
[WhiteElo "2293"]
[BlackElo "1809"]
[Result "1-0"]
[Round "09"]
[TimeControl "180+1"]
[Date "2021.05.04"]
[WhiteClock "0:00:43"]
[BlackClock "0:00:34"]

1. d4 {[%clk 0:03:00]}  Nf6 {[%clk 0:02:59]} 2. c4 {[%clk 0:03:00]}  c6 {[%clk 0:02:59]} 3. Nf3 {[%clk 0:03:00]}  d5 {[%clk 0:02:58]} 4. Nc3 {[%clk 0:03:00]}  e6 {[%clk 0:02:48]} 5. e3 {[%clk 0:02:57]}  Bd6 {[%clk 0:02:42]} 6. Bd3 {[%clk 0:02:55]}  dxc4 {[%clk 0:02:39]} 7. Bxc4 {[%clk 0:02:56]}  b5 {[%clk 0:02:39]} 8. Bd3 {[%clk 0:02:51]}  Bb7 {[%clk 0:02:35]} 9. e4 {[%clk 0:02:50]}  b4 {[%clk 0:02:35]} 10. Na4 {[%clk 0:02:36]}  Qa5 {[%clk 0:02:33]} 11. O-O {[%clk 0:02:11]}  Be7 {[%clk 0:02:30]} 12. Bd2 {[%clk 0:02:08]}  O-O {[%clk 0:02:27]} 13. Re1 {[%clk 0:02:08]}  Rd8 {[%clk 0:02:19]} 14. Qc2 {[%clk 0:02:04]}  Na6 {[%clk 0:02:14]} 15. e5 {[%clk 0:01:59]}  Nd5 {[%clk 0:02:08]} 16. Bxh7+ {[%clk 0:01:59]}  Kh8 {[%clk 0:02:08]} 17. Bd3 {[%clk 0:01:41]}  c5 {[%clk 0:02:03]} 18. Bg5 {[%clk 0:01:19]}  Rac8 {[%clk 0:01:54]} 19. Bxe7 {[%clk 0:01:17]}  Nxe7 {[%clk 0:01:51]} 20. Ng5 {[%clk 0:01:15]}  Kg8 {[%clk 0:01:46]} 21. Bxa6 {[%clk 0:01:00]}  Qxa6 {[%clk 0:01:29]} 22. Qh7+ {[%clk 0:00:59]}  Kf8 {[%clk 0:01:29]} 23. Nxc5 {[%clk 0:00:55]}  Rxc5 {[%clk 0:01:14]} 24. dxc5 {[%clk 0:00:51]}  Nf5 {[%clk 0:01:10]} 25. Rad1 {[%clk 0:00:44]}  Qc6 {[%clk 0:00:34]} 26. Qh8+ {[%clk 0:00:43]} 1-0


[Site "https://www.chess.com"]

[Event "Titled Tuesday Blitz May 4 2021"]
[White "Can, Emre"]
[Black "Dovbnia, Nikita"]
[WhiteFideId "6302181"]
[BlackFideId "54104599"]
[WhiteElo "2503"]
[BlackElo "2056"]
[Result "1-0"]
[Round "09"]
[TimeControl "180+1"]
[Date "2021.05.04"]
[WhiteClock "0:01:32"]
[BlackClock "0:01:09"]

1. e4 {[%clk 0:02:57]}  c5 {[%clk 0:03:00]} 2. Nf3 {[%clk 0:02:52]}  d6 {[%clk 0:03:00]} 3. d4 {[%clk 0:02:52]}  cxd4 {[%clk 0:03:01]} 4. Nxd4 {[%clk 0:02:53]}  Nf6 {[%clk 0:03:00]} 5. Nc3 {[%clk 0:02:53]}  a6 {[%clk 0:03:00]} 6. Bg5 {[%clk 0:02:53]}  e6 {[%clk 0:02:59]} 7. f4 {[%clk 0:02:52]}  h6 {[%clk 0:02:58]} 8. Bh4 {[%clk 0:02:49]}  Qb6 {[%clk 0:02:55]} 9. a3 {[%clk 0:02:46]}  Be7 {[%clk 0:02:52]} 10. Bf2 {[%clk 0:02:45]}  Qc7 {[%clk 0:02:52]} 11. Bd3 {[%clk 0:02:38]}  b5 {[%clk 0:02:51]} 12. Qe2 {[%clk 0:02:37]}  Nbd7 {[%clk 0:02:48]} 13. O-O-O {[%clk 0:02:36]}  Bb7 {[%clk 0:02:48]} 14. Rhe1 {[%clk 0:02:35]}  Rc8 {[%clk 0:02:41]} 15. Kb1 {[%clk 0:02:35]}  O-O {[%clk 0:02:40]} 16. g4 {[%clk 0:02:34]}  Nb6 {[%clk 0:02:04]} 17. g5 {[%clk 0:02:31]}  hxg5 {[%clk 0:01:59]} 18. fxg5 {[%clk 0:02:31]}  Nfd7 {[%clk 0:02:00]} 19. g6 {[%clk 0:02:31]}  Nc5 {[%clk 0:01:46]} 20. Qg4 {[%clk 0:02:01]}  Qd7 {[%clk 0:01:12]} 21. Rg1 {[%clk 0:01:40]}  f5 {[%clk 0:01:09]} 22. Qh5 {[%clk 0:01:32]} 1-0


[Site "https://www.chess.com"]

[Event "Titled Tuesday Blitz May 4 2021"]
[White "Chernomordik, Pavel"]
[Black "Gabdushev, Ruslan"]
[WhiteFideId "2804530"]
[BlackFideId "4137833"]
[WhiteElo "2299"]
[BlackElo "2312"]
[Result "1-0"]
[Round "09"]
[TimeControl "180+1"]
[Date "2021.05.04"]
[WhiteClock "0:00:05"]
[BlackClock "0:00:03"]

1. e4 {[%clk 0:03:00]}  Nc6 {[%clk 0:02:58]} 2. Nf3 {[%clk 0:03:00]}  d6 {[%clk 0:02:58]} 3. d4 {[%clk 0:02:59]}  Bg4 {[%clk 0:02:58]} 4. c3 {[%clk 0:02:55]}  Nf6 {[%clk 0:02:56]} 5. Nbd2 {[%clk 0:02:51]}  e5 {[%clk 0:02:54]} 6. d5 {[%clk 0:02:49]}  Ne7 {[%clk 0:02:53]} 7. h3 {[%clk 0:02:49]}  Bd7 {[%clk 0:02:53]} 8. c4 {[%clk 0:02:49]}  Ng6 {[%clk 0:02:52]} 9. g3 {[%clk 0:02:41]}  Be7 {[%clk 0:02:47]} 10. Bd3 {[%clk 0:02:39]}  O-O {[%clk 0:02:39]} 11. Qe2 {[%clk 0:02:31]}  c6 {[%clk 0:02:33]} 12. Nf1 {[%clk 0:02:16]}  a6 {[%clk 0:01:51]} 13. Ne3 {[%clk 0:02:06]}  b5 {[%clk 0:01:49]} 14. b3 {[%clk 0:02:05]}  bxc4 {[%clk 0:01:22]} 15. bxc4 {[%clk 0:02:04]}  Qa5+ {[%clk 0:01:10]} 16. Kf1 {[%clk 0:02:01]}  cxd5 {[%clk 0:01:03]} 17. cxd5 {[%clk 0:01:56]}  Nxe4 {[%clk 0:01:02]} 18. Bxe4 {[%clk 0:01:50]}  f5 {[%clk 0:01:02]} 19. Nc4 {[%clk 0:01:36]}  Qc7 {[%clk 0:00:43]} 20. Bc2 {[%clk 0:01:26]}  Bb5 {[%clk 0:00:41]} 21. Bb3 {[%clk 0:01:24]}  Rac8 {[%clk 0:00:40]} 22. Nfd2 {[%clk 0:01:23]}  Bg5 {[%clk 0:00:38]} 23. a4 {[%clk 0:01:10]}  Bxd2 {[%clk 0:00:35]} 24. axb5 {[%clk 0:01:08]}  axb5 {[%clk 0:00:23]} 25. Nxd2 {[%clk 0:01:03]}  Qc3 {[%clk 0:00:18]} 26. Rb1 {[%clk 0:00:59]}  f4 {[%clk 0:00:17]} 27. Ne4 {[%clk 0:00:57]}  Qd4 {[%clk 0:00:14]} 28. Bb2 {[%clk 0:00:33]}  Qb4 {[%clk 0:00:13]} 29. Bc3 {[%clk 0:00:31]}  Rxc3 {[%clk 0:00:11]} 30. Nxc3 {[%clk 0:00:30]}  Qxc3 {[%clk 0:00:12]} 31. g4 {[%clk 0:00:24]}  f3 {[%clk 0:00:11]} 32. Qc2 {[%clk 0:00:23]}  Qb4 {[%clk 0:00:08]} 33. h4 {[%clk 0:00:17]}  Qxg4 {[%clk 0:00:07]} 34. Rg1 {[%clk 0:00:16]}  Qh3+ {[%clk 0:00:06]} 35. Ke1 {[%clk 0:00:15]}  Nf4 {[%clk 0:00:06]} 36. Qe4 {[%clk 0:00:11]}  Ne2 {[%clk 0:00:05]} 37. Rg5 {[%clk 0:00:09]}  Qh1+ {[%clk 0:00:04]} 38. Kd2 {[%clk 0:00:09]}  Qh2 {[%clk 0:00:04]} 39. Qg4 {[%clk 0:00:08]}  g6 {[%clk 0:00:03]} 40. Rxg6+ {[%clk 0:00:08]}  hxg6 {[%clk 0:00:03]} 41. Qxg6+ {[%clk 0:00:08]}  Kh8 {[%clk 0:00:04]} 42. Qh6+ {[%clk 0:00:07]}  Kg8 {[%clk 0:00:04]} 43. Qg5+ {[%clk 0:00:07]}  Kh8 {[%clk 0:00:04]} 44. Qe7 {[%clk 0:00:06]}  Qf4+ {[%clk 0:00:03]} 45. Ke1 {[%clk 0:00:05]} 1-0


[Site "https://www.chess.com"]

[Event "Titled Tuesday Blitz May 4 2021"]
[White "Chitlange Sakshi"]
[Black "Skatchkov, Pavel"]
[WhiteFideId "35002899"]
[BlackFideId "4121848"]
[WhiteElo "1787"]
[BlackElo "2476"]
[Result "0-1"]
[Round "09"]
[TimeControl "180+1"]
[Date "2021.05.04"]
[WhiteClock "0:00:17"]
[BlackClock "0:01:54"]

1. d4 {[%clk 0:03:00]}  Nf6 {[%clk 0:02:59]} 2. c4 {[%clk 0:03:01]}  e6 {[%clk 0:02:59]} 3. g3 {[%clk 0:03:00]}  d5 {[%clk 0:02:59]} 4. Bg2 {[%clk 0:03:00]}  dxc4 {[%clk 0:02:58]} 5. Nf3 {[%clk 0:03:00]}  a6 {[%clk 0:02:59]} 6. O-O {[%clk 0:02:58]}  Nc6 {[%clk 0:02:59]} 7. Qc2 {[%clk 0:02:46]}  Nxd4 {[%clk 0:02:57]} 8. Nxd4 {[%clk 0:02:44]}  Qxd4 {[%clk 0:02:58]} 9. Be3 {[%clk 0:02:42]}  Qe5 {[%clk 0:02:55]} 10. Nd2 {[%clk 0:02:36]}  Be7 {[%clk 0:02:44]} 11. Nxc4 {[%clk 0:02:36]}  Qh5 {[%clk 0:02:45]} 12. Bf4 {[%clk 0:02:15]}  Nd5 {[%clk 0:02:30]} 13. Bf3 {[%clk 0:01:55]}  Qh3 {[%clk 0:02:17]} 14. Bg2 {[%clk 0:01:50]}  Qh5 {[%clk 0:02:16]} 15. Bf3 {[%clk 0:01:34]}  Qg6 {[%clk 0:02:14]} 16. Be4 {[%clk 0:01:30]}  f5 {[%clk 0:02:10]} 17. Ne5 {[%clk 0:01:26]}  Qf6 {[%clk 0:02:06]} 18. Bxd5 {[%clk 0:01:09]}  exd5 {[%clk 0:02:06]} 19. Qxc7 {[%clk 0:00:52]}  Bd6 {[%clk 0:02:07]} 20. Nd7 {[%clk 0:00:26]}  Bxd7 {[%clk 0:01:52]} 21. Bxd6 {[%clk 0:00:25]}  Rc8 {[%clk 0:01:52]} 22. Qb6 {[%clk 0:00:22]}  Rc6 {[%clk 0:01:52]} 23. Qxb7 {[%clk 0:00:21]}  Qxd6 {[%clk 0:01:52]} 24. Qa8+ {[%clk 0:00:20]}  Rc8 {[%clk 0:01:53]} 25. Qb7 {[%clk 0:00:20]}  O-O {[%clk 0:01:53]} 26. Qb3 {[%clk 0:00:20]}  Bc6 {[%clk 0:01:53]} 27. Rad1 {[%clk 0:00:21]}  Kh8 {[%clk 0:01:54]} 28. Rd4 {[%clk 0:00:21]}  Qe5 {[%clk 0:01:53]} 29. Rfd1 {[%clk 0:00:21]}  f4 {[%clk 0:01:53]} 30. gxf4 {[%clk 0:00:18]}  Rxf4 {[%clk 0:01:54]} 31. Rxf4 {[%clk 0:00:18]}  Qxf4 {[%clk 0:01:55]} 32. e3 {[%clk 0:00:17]}  Qg4+ {[%clk 0:01:55]} 33. Kf1 {[%clk 0:00:18]}  Bb5+ {[%clk 0:01:54]} 34. Ke1 {[%clk 0:00:17]} 0-1


[Site "https://www.chess.com"]

[Event "Titled Tuesday Blitz May 4 2021"]
[White "Chyzy, Jakub"]
[Black "Vega Gutierrez, Sabrina"]
[WhiteFideId "21806209"]
[BlackFideId "2219026"]
[WhiteElo "2013"]
[BlackElo "2281"]
[Result "0-1"]
[Round "09"]
[TimeControl "180+1"]
[Date "2021.05.04"]
[WhiteClock "0:00:01"]
[BlackClock "0:00:19"]

1. b3 {[%clk 0:03:00]}  e5 {[%clk 0:02:59]} 2. Bb2 {[%clk 0:03:01]}  d6 {[%clk 0:02:58]} 3. e3 {[%clk 0:03:01]}  f5 {[%clk 0:02:56]} 4. d4 {[%clk 0:02:53]}  e4 {[%clk 0:02:40]} 5. d5 {[%clk 0:02:53]}  Nf6 {[%clk 0:02:39]} 6. c4 {[%clk 0:02:50]}  Be7 {[%clk 0:02:39]} 7. Ne2 {[%clk 0:02:49]}  O-O {[%clk 0:02:38]} 8. Nd4 {[%clk 0:02:46]}  c6 {[%clk 0:02:36]} 9. Nc3 {[%clk 0:02:43]}  cxd5 {[%clk 0:02:28]} 10. cxd5 {[%clk 0:02:40]}  Na6 {[%clk 0:02:26]} 11. Bxa6 {[%clk 0:02:25]}  bxa6 {[%clk 0:02:27]} 12. Nc6 {[%clk 0:02:25]}  Qe8 {[%clk 0:02:25]} 13. O-O {[%clk 0:02:19]}  Ng4 {[%clk 0:02:19]} 14. h3 {[%clk 0:02:11]}  Nh6 {[%clk 0:02:08]} 15. Nxe7+ {[%clk 0:01:57]}  Qxe7 {[%clk 0:02:09]} 16. Ne2 {[%clk 0:01:57]}  Bd7 {[%clk 0:02:04]} 17. Qd4 {[%clk 0:01:56]}  Rf6 {[%clk 0:01:46]} 18. Nf4 {[%clk 0:01:50]}  Nf7 {[%clk 0:01:43]} 19. Qb4 {[%clk 0:01:16]}  Rh6 {[%clk 0:01:28]} 20. Rac1 {[%clk 0:01:04]}  g5 {[%clk 0:01:20]} 21. Ne6 {[%clk 0:00:54]}  Bxe6 {[%clk 0:01:18]} 22. dxe6 {[%clk 0:00:55]}  Qxe6 {[%clk 0:01:17]} 23. Qb7 {[%clk 0:00:39]}  Rf8 {[%clk 0:01:15]} 24. Rc7 {[%clk 0:00:33]}  g4 {[%clk 0:00:56]} 25. Re7 {[%clk 0:00:26]}  Qg6 {[%clk 0:00:55]} 26. Qd5 {[%clk 0:00:25]}  gxh3 {[%clk 0:00:53]} 27. g3 {[%clk 0:00:20]}  h2+ {[%clk 0:00:51]} 28. Kh1 {[%clk 0:00:20]}  Qg4 {[%clk 0:00:41]} 29. f3 {[%clk 0:00:18]}  Qxg3 {[%clk 0:00:26]} 30. Qd4 {[%clk 0:00:14]}  Rg6 {[%clk 0:00:23]} 31. Qh8+ {[%clk 0:00:02]}  Nxh8 {[%clk 0:00:22]} 32. Rg7+ {[%clk 0:00:01]}  Rxg7 {[%clk 0:00:21]} 33. Bxg7 {[%clk 0:00:02]}  exf3 {[%clk 0:00:19]} 34. Bxf8 {[%clk 0:00:01]}  Qg2# {[%clk 0:00:19]} 0-1


[Site "https://www.chess.com"]

[Event "Titled Tuesday Blitz May 4 2021"]
[White "Coelho, Ramyres Santana"]
[Black "Roque Sola, Gisela"]
[WhiteFideId "2120690"]
[BlackFideId "5120241"]
[WhiteElo "1888"]
[BlackElo "1863"]
[Result "1-0"]
[Round "09"]
[TimeControl "180+1"]
[Date "2021.05.04"]
[WhiteClock "0:02:25"]
[BlackClock "0:01:48"]

1. e4 {[%clk 0:02:59]}  e6 {[%clk 0:02:52]} 2. d4 {[%clk 0:02:59]}  d5 {[%clk 0:02:50]} 3. Nc3 {[%clk 0:02:59]}  Nf6 {[%clk 0:02:50]} 4. e5 {[%clk 0:03:00]}  Nfd7 {[%clk 0:02:50]} 5. f4 {[%clk 0:03:01]}  c5 {[%clk 0:02:50]} 6. Nf3 {[%clk 0:03:01]}  Nc6 {[%clk 0:02:50]} 7. Be3 {[%clk 0:03:02]}  a6 {[%clk 0:02:48]} 8. Be2 {[%clk 0:02:57]}  Be7 {[%clk 0:02:44]} 9. O-O {[%clk 0:02:57]}  b5 {[%clk 0:02:41]} 10. a3 {[%clk 0:02:57]}  Qb6 {[%clk 0:02:38]} 11. dxc5 {[%clk 0:02:55]}  Bxc5 {[%clk 0:02:36]} 12. Bxc5 {[%clk 0:02:55]}  Nxc5 {[%clk 0:02:34]} 13. Kh1 {[%clk 0:02:55]}  Bd7 {[%clk 0:02:27]} 14. f5 {[%clk 0:02:51]}  Ne4 {[%clk 0:02:18]} 15. Nxe4 {[%clk 0:02:47]}  dxe4 {[%clk 0:02:19]} 16. fxe6 {[%clk 0:02:47]}  Bxe6 {[%clk 0:02:15]} 17. Ng5 {[%clk 0:02:46]}  Nxe5 {[%clk 0:02:14]} 18. Nxe6 {[%clk 0:02:39]}  Qxe6 {[%clk 0:02:13]} 19. Qd4 {[%clk 0:02:35]}  Nc6 {[%clk 0:02:02]} 20. Qxg7 {[%clk 0:02:29]}  O-O-O {[%clk 0:01:48]} 21. Bg4 {[%clk 0:02:25]} 1-0


[Site "https://www.chess.com"]

[Event "Titled Tuesday Blitz May 4 2021"]
[White "Crevatin, Leo"]
[Black "Bolanos, Fernando"]
[WhiteFideId "1726307"]
[BlackFideId "3304094"]
[WhiteElo "2081"]
[BlackElo "1998"]
[Result "1-0"]
[Round "09"]
[TimeControl "180+1"]
[Date "2021.05.04"]
[WhiteClock "0:01:02"]
[BlackClock "0:00:18"]

1. d4 {[%clk 0:03:00]}  Nf6 {[%clk 0:02:05]} 2. c4 {[%clk 0:02:56]}  g6 {[%clk 0:02:04]} 3. f3 {[%clk 0:02:56]}  c5 {[%clk 0:02:02]} 4. d5 {[%clk 0:02:56]}  e5 {[%clk 0:02:01]} 5. e4 {[%clk 0:02:53]}  d6 {[%clk 0:02:01]} 6. Nc3 {[%clk 0:02:53]}  Bg7 {[%clk 0:02:02]} 7. Bg5 {[%clk 0:02:52]}  h6 {[%clk 0:02:01]} 8. Be3 {[%clk 0:02:52]}  a6 {[%clk 0:02:01]} 9. a4 {[%clk 0:02:50]}  a5 {[%clk 0:02:00]} 10. Qd2 {[%clk 0:02:48]}  Na6 {[%clk 0:02:00]} 11. g4 {[%clk 0:02:43]}  Nb4 {[%clk 0:01:58]} 12. Be2 {[%clk 0:02:33]}  Bd7 {[%clk 0:01:56]} 13. h4 {[%clk 0:02:31]}  h5 {[%clk 0:01:56]} 14. g5 {[%clk 0:02:30]}  Ng8 {[%clk 0:01:55]} 15. Nh3 {[%clk 0:02:30]}  Qc8 {[%clk 0:01:54]} 16. Nf2 {[%clk 0:02:27]}  Ne7 {[%clk 0:01:55]} 17. f4 {[%clk 0:02:13]}  Qc7 {[%clk 0:01:00]} 18. Rc1 {[%clk 0:01:49]}  O-O-O {[%clk 0:00:55]} 19. O-O {[%clk 0:01:48]}  f6 {[%clk 0:00:53]} 20. fxe5 {[%clk 0:01:43]}  fxe5 {[%clk 0:00:52]} 21. Nb5 {[%clk 0:01:38]}  Bxb5 {[%clk 0:00:51]} 22. cxb5 {[%clk 0:01:34]}  Rdf8 {[%clk 0:00:51]} 23. Nd3 {[%clk 0:01:23]}  Kb8 {[%clk 0:00:48]} 24. Nxc5 {[%clk 0:01:17]}  dxc5 {[%clk 0:00:46]} 25. d6 {[%clk 0:01:17]}  Qc8 {[%clk 0:00:23]} 26. dxe7 {[%clk 0:01:14]}  Rxf1+ {[%clk 0:00:23]} 27. Rxf1 {[%clk 0:01:12]}  Qh3 {[%clk 0:00:20]} 28. Qd8+ {[%clk 0:01:05]}  Ka7 {[%clk 0:00:16]} 29. Bxc5+ {[%clk 0:01:03]}  b6 {[%clk 0:00:17]} 30. Bxb6+ {[%clk 0:01:02]}  Kb7 {[%clk 0:00:17]} 31. Qc7+ {[%clk 0:01:01]}  Ka8 {[%clk 0:00:18]} 32. Qa7# {[%clk 0:01:02]} 1-0


[Site "https://www.chess.com"]

[Event "Titled Tuesday Blitz May 4 2021"]
[White "Csonka, Balazs"]
[Black "Spata, German"]
[WhiteFideId "742910"]
[BlackFideId "113026"]
[WhiteElo "2404"]
[BlackElo "2238"]
[Result "1-0"]
[Round "09"]
[TimeControl "180+1"]
[Date "2021.05.04"]
[WhiteClock "0:01:48"]
[BlackClock "0:01:58"]

1. e4 {[%clk 0:03:00]}  d5 {[%clk 0:02:59]} 2. exd5 {[%clk 0:02:58]}  Qxd5 {[%clk 0:03:00]} 3. Nc3 {[%clk 0:02:58]}  Qd6 {[%clk 0:03:00]} 4. d4 {[%clk 0:02:58]}  Nf6 {[%clk 0:03:00]} 5. Nf3 {[%clk 0:02:58]}  c6 {[%clk 0:03:00]} 6. Ne5 {[%clk 0:02:55]}  Nbd7 {[%clk 0:03:00]} 7. Nc4 {[%clk 0:02:32]}  Qc7 {[%clk 0:02:53]} 8. Qf3 {[%clk 0:02:32]}  Nb6 {[%clk 0:02:46]} 9. Bf4 {[%clk 0:02:32]}  Qd8 {[%clk 0:02:45]} 10. Be5 {[%clk 0:01:58]}  g6 {[%clk 0:02:13]} 11. Nd6+ {[%clk 0:01:49]}  exd6 {[%clk 0:01:58]} 12. Bxf6 {[%clk 0:01:48]} 1-0


[Site "https://www.chess.com"]

[Event "Titled Tuesday Blitz May 4 2021"]
[White "Cunjalo, Faris"]
[Black "Gusarov, Grigory"]
[WhiteFideId "14410710"]
[BlackFideId "24102172"]
[WhiteElo "2234"]
[BlackElo "2285"]
[Result "1-0"]
[Round "09"]
[TimeControl "180+1"]
[Date "2021.05.04"]
[WhiteClock "0:00:14"]
[BlackClock "0:00:49"]

1. c4 {[%clk 0:03:00]}  Nf6 {[%clk 0:02:59]} 2. Nc3 {[%clk 0:03:00]}  e6 {[%clk 0:03:00]} 3. e4 {[%clk 0:03:01]}  c5 {[%clk 0:02:59]} 4. e5 {[%clk 0:03:00]}  Ng8 {[%clk 0:02:59]} 5. Nf3 {[%clk 0:03:01]}  Nc6 {[%clk 0:03:00]} 6. d4 {[%clk 0:03:02]}  cxd4 {[%clk 0:03:00]} 7. Nxd4 {[%clk 0:03:03]}  Bb4 {[%clk 0:02:55]} 8. Nxc6 {[%clk 0:03:00]}  dxc6 {[%clk 0:02:52]} 9. Qxd8+ {[%clk 0:03:01]}  Kxd8 {[%clk 0:02:51]} 10. Bf4 {[%clk 0:02:23]}  Bxc3+ {[%clk 0:02:44]} 11. bxc3 {[%clk 0:02:24]}  Ne7 {[%clk 0:02:43]} 12. h4 {[%clk 0:02:11]}  Kc7 {[%clk 0:02:42]} 13. h5 {[%clk 0:02:10]}  Bd7 {[%clk 0:02:40]} 14. Rh3 {[%clk 0:02:07]}  h6 {[%clk 0:02:34]} 15. Bd3 {[%clk 0:02:05]}  c5 {[%clk 0:02:31]} 16. Rg3 {[%clk 0:01:53]}  Rag8 {[%clk 0:02:31]} 17. Ke2 {[%clk 0:01:54]}  b6 {[%clk 0:02:25]} 18. Rh1 {[%clk 0:01:51]}  Kc8 {[%clk 0:02:16]} 19. Rg4 {[%clk 0:01:06]}  Bc6 {[%clk 0:02:01]} 20. Rh3 {[%clk 0:01:00]}  Nf5 {[%clk 0:02:01]} 21. Bd2 {[%clk 0:01:00]}  Kd7 {[%clk 0:01:57]} 22. Rh2 {[%clk 0:00:41]}  Ke8 {[%clk 0:01:50]} 23. Rf4 {[%clk 0:00:38]}  Bd7 {[%clk 0:01:50]} 24. Be4 {[%clk 0:00:36]}  Ne7 {[%clk 0:01:48]} 25. Rh3 {[%clk 0:00:36]}  Bc6 {[%clk 0:01:47]} 26. Rd3 {[%clk 0:00:29]}  Bxe4 {[%clk 0:01:41]} 27. Rxe4 {[%clk 0:00:30]}  Nc8 {[%clk 0:01:41]} 28. Rg4 {[%clk 0:00:30]}  Ke7 {[%clk 0:01:37]} 29. a4 {[%clk 0:00:29]}  g6 {[%clk 0:01:33]} 30. Rdg3 {[%clk 0:00:26]}  g5 {[%clk 0:01:21]} 31. f4 {[%clk 0:00:26]}  f5 {[%clk 0:01:22]} 32. exf6+ {[%clk 0:00:26]}  Kxf6 {[%clk 0:01:23]} 33. fxg5+ {[%clk 0:00:27]}  hxg5 {[%clk 0:01:23]} 34. Rxg5 {[%clk 0:00:24]}  Rxg5 {[%clk 0:01:23]} 35. Bxg5+ {[%clk 0:00:20]}  Kf5 {[%clk 0:01:19]} 36. h6 {[%clk 0:00:20]}  Nd6 {[%clk 0:01:18]} 37. Bc1 {[%clk 0:00:18]}  Ne4 {[%clk 0:01:12]} 38. Rg7 {[%clk 0:00:17]}  Nxc3+ {[%clk 0:01:08]} 39. Kd3 {[%clk 0:00:14]}  Nxa4 {[%clk 0:01:00]} 40. g4+ {[%clk 0:00:13]}  Ke5 {[%clk 0:00:58]} 41. Rxa7 {[%clk 0:00:11]}  b5 {[%clk 0:00:56]} 42. cxb5 {[%clk 0:00:12]}  c4+ {[%clk 0:00:55]} 43. Kc2 {[%clk 0:00:09]}  Rf8 {[%clk 0:00:49]} 44. Rxa4 {[%clk 0:00:09]}  Rf2+ {[%clk 0:00:49]} 45. Bd2 {[%clk 0:00:10]}  Kd4 {[%clk 0:00:49]} 46. b6 {[%clk 0:00:10]}  Rf7 {[%clk 0:00:48]} 47. Ra7 {[%clk 0:00:10]}  Rf2 {[%clk 0:00:47]} 48. Rd7+ {[%clk 0:00:10]}  Kc5 {[%clk 0:00:47]} 49. b7 {[%clk 0:00:11]}  Rf8 {[%clk 0:00:47]} 50. h7 {[%clk 0:00:11]}  Rb8 {[%clk 0:00:47]} 51. Bf4 {[%clk 0:00:11]}  e5 {[%clk 0:00:47]} 52. Bxe5 {[%clk 0:00:11]}  Re8 {[%clk 0:00:48]} 53. b8=Q {[%clk 0:00:12]}  Rxb8 {[%clk 0:00:48]} 54. Bxb8 {[%clk 0:00:13]}  c3 {[%clk 0:00:49]} 55. Rc7+ {[%clk 0:00:14]} 1-0


[Site "https://www.chess.com"]

[Event "Titled Tuesday Blitz May 4 2021"]
[White "Demin, Vladimir"]
[Black "Perez Gormaz, Matias"]
[WhiteFideId "4167457"]
[BlackFideId "3406342"]
[WhiteElo "2503"]
[BlackElo "2414"]
[Result "1-0"]
[Round "09"]
[TimeControl "180+1"]
[Date "2021.05.04"]
[WhiteClock "0:01:29"]
[BlackClock "0:00:01"]

1. e4 {[%clk 0:02:57]}  c5 {[%clk 0:02:53]} 2. Nf3 {[%clk 0:02:56]}  d6 {[%clk 0:02:53]} 3. d4 {[%clk 0:02:56]}  cxd4 {[%clk 0:02:54]} 4. Qxd4 {[%clk 0:02:57]}  Nc6 {[%clk 0:02:54]} 5. Bb5 {[%clk 0:02:57]}  Bd7 {[%clk 0:02:54]} 6. Bxc6 {[%clk 0:02:57]}  Bxc6 {[%clk 0:02:55]} 7. Nc3 {[%clk 0:02:57]}  Nf6 {[%clk 0:02:55]} 8. Bg5 {[%clk 0:02:57]}  e6 {[%clk 0:02:55]} 9. O-O-O {[%clk 0:02:58]}  Be7 {[%clk 0:02:56]} 10. Qd3 {[%clk 0:02:58]}  Qa5 {[%clk 0:02:56]} 11. Kb1 {[%clk 0:02:57]}  O-O {[%clk 0:02:51]} 12. h4 {[%clk 0:02:57]}  Rfc8 {[%clk 0:02:50]} 13. Nd4 {[%clk 0:02:57]}  Be8 {[%clk 0:02:50]} 14. f4 {[%clk 0:02:56]}  Rxc3 {[%clk 0:01:36]} 15. Qxc3 {[%clk 0:02:53]}  Qxc3 {[%clk 0:01:36]} 16. bxc3 {[%clk 0:02:54]}  h6 {[%clk 0:01:37]} 17. e5 {[%clk 0:02:47]}  dxe5 {[%clk 0:01:33]} 18. fxe5 {[%clk 0:02:47]}  hxg5 {[%clk 0:01:30]} 19. exf6 {[%clk 0:02:46]}  Bxf6 {[%clk 0:01:30]} 20. hxg5 {[%clk 0:02:46]}  Bxg5 {[%clk 0:01:31]} 21. Rh3 {[%clk 0:02:34]}  Bf6 {[%clk 0:01:25]} 22. g4 {[%clk 0:02:31]}  Rc8 {[%clk 0:01:22]} 23. Rdh1 {[%clk 0:02:26]}  g6 {[%clk 0:01:18]} 24. g5 {[%clk 0:02:25]}  Bg7 {[%clk 0:01:16]} 25. Kb2 {[%clk 0:02:21]}  Kf8 {[%clk 0:01:14]} 26. Kb3 {[%clk 0:02:17]}  Rc5 {[%clk 0:01:11]} 27. Rf1 {[%clk 0:02:16]}  Kg8 {[%clk 0:00:42]} 28. Rg1 {[%clk 0:02:11]}  b5 {[%clk 0:00:38]} 29. a4 {[%clk 0:02:00]}  bxa4+ {[%clk 0:00:37]} 30. Kb4 {[%clk 0:02:01]}  Bf8 {[%clk 0:00:35]} 31. Rgh1 {[%clk 0:01:51]}  a5+ {[%clk 0:00:10]} 32. Ka3 {[%clk 0:01:52]}  Rxc3+ {[%clk 0:00:09]} 33. Kb2 {[%clk 0:01:52]}  Rxh3 {[%clk 0:00:10]} 34. Rxh3 {[%clk 0:01:52]}  Be7 {[%clk 0:00:06]} 35. Rg3 {[%clk 0:01:44]}  Bd6 {[%clk 0:00:06]} 36. Rg4 {[%clk 0:01:42]}  Be5 {[%clk 0:00:06]} 37. c3 {[%clk 0:01:43]}  Bd6 {[%clk 0:00:05]} 38. Nc2 {[%clk 0:01:41]}  Bd7 {[%clk 0:00:05]} 39. Rd4 {[%clk 0:01:41]}  a3+ {[%clk 0:00:04]} 40. Ka2 {[%clk 0:01:39]}  Be7 {[%clk 0:00:03]} 41. Rxd7 {[%clk 0:01:39]}  Bxg5 {[%clk 0:00:04]} 42. Kxa3 {[%clk 0:01:38]}  Bf6 {[%clk 0:00:04]} 43. Nd4 {[%clk 0:01:38]}  g5 {[%clk 0:00:04]} 44. Ra7 {[%clk 0:01:37]}  Kg7 {[%clk 0:00:02]} 45. Rxa5 {[%clk 0:01:35]}  Kg6 {[%clk 0:00:02]} 46. Kb3 {[%clk 0:01:34]}  g4 {[%clk 0:00:03]} 47. Ne2 {[%clk 0:01:34]}  Be7 {[%clk 0:00:02]} 48. c4 {[%clk 0:01:30]}  f5 {[%clk 0:00:02]} 49. Nf4+ {[%clk 0:01:31]}  Kf6 {[%clk 0:00:02]} 50. Ra6 {[%clk 0:01:31]}  Kg5 {[%clk 0:00:01]} 51. Nxe6+ {[%clk 0:01:29]}  Kh4 {[%clk 0:00:02]} 52. Nd4 {[%clk 0:01:29]}  f4 {[%clk 0:00:01]} 1-0


[Site "https://www.chess.com"]